bitfinex/quotes_BTCUSD_20240717
["timestamp","ask_amount","ask_price","bid_price","bid_amount"]
[1721257539567,1.21670577,64245.0,64244.0,0.009174]
[1721257540279,1.21973595,64245.0,64244.0,0.009174]
[1721257540425,1.47411769,64245.0,64244.0,0.009174]
[1721257540643,1.54393699,64245.0,64244.0,0.009174]
[1721257540844,1.53093699,64245.0,64244.0,0.009174]
[1721257541045,1.54493699,64245.0,64244.0,0.009174]
[1721257541249,1.53197462,64245.0,64244.0,0.009174]
[1721257541443,1.54242601,64245.0,64244.0,0.009174]
[1721257541649,1.8972746,64245.0,64244.0,0.009174]
[1721257541874,2.02607371,64245.0,64244.0,0.009174]
[1721257542240,1.93294856,64245.0,64244.0,0.009174]
[1721257542465,2.02608456,64245.0,64244.0,0.009174]
[1721257542789,1.86678456,64245.0,64244.0,0.009174]
[1721257543318,1.77364856,64245.0,64244.0,0.009174]
[1721257544117,1.30795882,64245.0,64244.0,0.009174]
[1721257544454,1.41542427,64245.0,64244.0,0.070074]
[1721257544641,0.20255209,64245.0,64244.0,0.38110479]
[1721257544833,0.20255209,64245.0,64244.0,0.69241779]
[1721257544834,0.028,64245.0,64244.0,0.69241779]
[1721257544967,0.155635,64253.0,64250.0,0.300642]
[1721257544968,0.04657873,64251.0,64250.0,0.300642]
[1721257545178,0.13975855,64263.0,64253.0,0.155634]
[1721257545179,0.155622,64259.0,64253.0,0.155634]
[1721257545376,0.155622,64259.0,64258.0,0.22217479]
[1721257545576,0.466862,64259.0,64258.0,0.22217479]
[1721257545779,0.466862,64259.0,64258.0,0.145]
[1721257546183,0.51343585,64259.0,64258.0,0.145]
[1721257546407,1.089342,64259.0,64258.0,0.145]
[1721257546609,0.155645,64249.0,64247.0,0.0612]
[1721257546835,0.155646,64248.0,64247.0,0.0612]
[1721257547273,0.311285,64250.0,64247.0,0.0612]
[1721257547502,0.155646,64249.0,64247.0,0.0612]
[1721257547907,0.155641,64251.0,64247.0,0.0612]
[1721257548075,0.155641,64251.0,64249.0,0.0613]
[1721257548683,0.155642,64250.0,64249.0,0.0613]
[1721257549354,0.466926,64250.0,64249.0,0.0613]
[1721257549567,0.77821,64250.0,64249.0,0.0613]
[1721257550086,0.78221,64250.0,64249.0,0.0613]
[1721257550279,0.470926,64250.0,64249.0,0.0613]
[1721257551324,0.470926,64250.0,64249.0,0.0159]
[1721257551325,0.471926,64250.0,64249.0,0.0159]
[1721257553870,0.78321,64250.0,64249.0,0.0159]
[1721257554028,0.155651,64246.0,64245.0,0.000913]
[1721257554207,0.778257,64246.0,64245.0,0.000913]
[1721257554407,1.08956,64246.0,64245.0,0.000913]
[1721257554653,1.24394174,64246.0,64245.0,0.000913]
[1721257554881,1.41753858,64246.0,64245.0,0.000913]
[1721257555764,1.55793858,64246.0,64245.0,0.000913]
[1721257555917,1.65793858,64246.0,64245.0,0.001913]
[1721257556493,1.51753858,64246.0,64245.0,0.07908779]
[1721257556695,1.39850284,64246.0,64245.0,0.07908779]
[1721257556896,1.51770215,64246.0,64245.0,0.07908779]
[1721257557322,1.51770215,64246.0,64245.0,0.07808779]
[1721257557526,1.52070215,64246.0,64245.0,0.07808779]
[1721257557744,1.52370215,64246.0,64245.0,0.000913]
[1721257558703,0.25676041,64246.0,64245.0,0.21908779]
[1721257558929,0.261651,64246.0,64245.0,0.21908779]
[1721257559128,0.572954,64246.0,64245.0,0.141913]
[1721257559535,0.61953706,64246.0,64245.0,0.141913]
[1721257559955,0.93084167,64246.0,64245.0,0.081313]
[1721257560333,0.93084192,64246.0,64245.0,0.081313]
[1721257561751,0.91583419,64246.0,64245.0,0.081313]
[1721257562519,0.91583419,64246.0,64245.0,0.000913]
[1721257562720,1.03457936,64246.0,64245.0,0.000913]
[1721257563579,1.05787464,64246.0,64245.0,0.000913]
[1721257563730,1.36917764,64246.0,64245.0,0.000913]
[1721257563931,1.54655938,64246.0,64245.0,0.000913]
[1721257564131,1.45337827,64246.0,64245.0,0.000913]
[1721257565462,1.56999281,64246.0,64245.0,0.000913]
[1721257566074,1.45344656,64246.0,64245.0,0.000913]
[1721257568462,1.40451893,64246.0,64245.0,0.000913]
[1721257568668,1.4529239,64246.0,64245.0,0.000913]
[1721257569133,1.45309692,64246.0,64245.0,0.000913]
[1721257570111,1.90379992,64246.0,64245.0,0.000913]
[1721257570868,1.45309692,64246.0,64245.0,0.07808779]
[1721257571491,1.45309692,64246.0,64245.0,0.000913]
[1721257571873,1.45389664,64246.0,64245.0,0.000913]
[1721257574827,1.45435782,64246.0,64245.0,0.000913]
[1721257576517,1.51725782,64246.0,64245.0,0.000913]
[1721257577943,1.59995782,64246.0,64245.0,0.000913]
[1721257578552,1.59980721,64246.0,64245.0,0.000913]
[1721257578915,1.64949723,64246.0,64245.0,0.000913]
[1721257580071,1.64449723,64246.0,64245.0,0.000913]
[1721257580471,1.95580023,64246.0,64245.0,0.000913]
[1721257581266,1.81520023,64246.0,64245.0,0.000913]
[1721257582006,1.95620023,64246.0,64245.0,0.000913]
[1721257584424,1.95524132,64246.0,64245.0,0.000913]
[1721257587079,2.00524132,64246.0,64245.0,0.000913]
[1721257587284,1.95524132,64246.0,64245.0,0.000913]
[1721257587441,1.90651021,64246.0,64245.0,0.000913]
[1721257587639,1.95455161,64246.0,64245.0,0.000913]
[1721257588044,1.95456507,64246.0,64245.0,0.000913]
[1721257588618,1.81362138,64246.0,64245.0,0.000913]
[1721257588820,1.50231838,64246.0,64245.0,0.138713]
[1721257589898,1.45420721,64246.0,64245.0,0.138713]
[1721257590311,1.45310739,64246.0,64245.0,0.138713]
[1721257590958,1.45310719,64246.0,64245.0,0.138713]
[1721257591387,1.45310719,64246.0,64245.0,0.000913]
[1721257592000,1.76441019,64246.0,64245.0,0.000913]
[1721257592200,1.98781019,64246.0,64245.0,0.000913]
[1721257592618,2.12754401,64246.0,64245.0,0.000913]
[1721257592823,2.07897403,64246.0,64245.0,0.000913]
[1721257593024,2.12705702,64246.0,64245.0,0.000913]
[1721257594120,2.12662661,64246.0,64245.0,0.000913]
[1721257594515,1.98686489,64246.0,64245.0,0.000913]
[1721257594977,1.90323734,64246.0,64245.0,0.000913]
[1721257595568,1.45216189,64246.0,64245.0,0.000913]
[1721257595773,0.91583419,64246.0,64245.0,0.000913]
[1721257595974,1.10330335,64246.0,64245.0,0.137113]
[1721257596697,0.96351241,64246.0,64245.0,0.137113]
[1721257596885,1.10332926,64246.0,64245.0,0.137113]
[1721257597136,1.05565104,64246.0,64245.0,0.137113]
[1721257597322,1.1030813,64246.0,64245.0,0.137113]
[1721257597550,0.96327065,64246.0,64245.0,0.137113]
[1721257597709,1.27457337,64246.0,64245.0,0.137113]
[1721257598670,0.96327037,64246.0,64245.0,0.137113]
[1721257599460,0.77827,64245.0,64244.0,0.009174]
[1721257599653,1.22115519,64245.0,64244.0,0.009174]
[1721257600281,1.4085397,64245.0,64244.0,0.009174]
[1721257600443,1.2686317,64245.0,64244.0,0.009174]
[1721257600644,1.40855934,64245.0,64244.0,0.009174]
[1721257600881,1.41055934,64245.0,64244.0,0.009174]
[1721257601271,1.41013953,64245.0,64244.0,0.009174]
[1721257601486,1.41213953,64245.0,64244.0,0.009174]
[1721257603690,0.32256153,64245.0,64244.0,0.009174]
[1721257603870,0.23828785,64245.0,64244.0,0.152474]
[1721257604324,0.19123119,64245.0,64244.0,0.127474]
[1721257604672,0.23904288,64245.0,64244.0,0.127474]
[1721257605248,0.55035088,64245.0,64244.0,0.127474]
[1721257605453,0.86165888,64245.0,64244.0,0.127474]
[1721257607432,0.778282,64244.0,64243.0,0.0144287]
[1721257607653,0.80985919,64244.0,64243.0,0.0144287]
[1721257607859,0.85746478,64244.0,64243.0,0.0144287]
[1721257608094,0.85746504,64244.0,64243.0,0.0144287]
[1721257608752,0.85846504,64244.0,64243.0,0.0144287]
[1721257608952,1.16977804,64244.0,64243.0,0.0144287]
[1721257609371,1.69657278,64244.0,64243.0,0.0144287]
[1721257609545,2.04297278,64244.0,64243.0,0.0144287]
[1721257609750,1.50825978,64244.0,64243.0,0.0144287]
[1721257610894,1.51502742,64244.0,64243.0,0.0154287]
[1721257611569,1.50702742,64244.0,64243.0,0.0144287]
[1721257611773,1.50702742,64244.0,64243.0,0.0154287]
[1721257611975,1.52102742,64244.0,64243.0,0.0154287]
[1721257613174,1.53502742,64244.0,64243.0,0.0154287]
[1721257613572,1.52102742,64244.0,64243.0,0.0154287]
[1721257613799,1.53502742,64244.0,64243.0,0.0154287]
[1721257614734,1.61602742,64244.0,64243.0,0.0154287]
[1721257616420,1.92734042,64244.0,64243.0,0.0154287]
[1721257616831,2.15074042,64244.0,64243.0,0.0154287]
[1721257617063,2.15163668,64244.0,64243.0,0.0154287]
[1721257617390,2.10336693,64244.0,64243.0,0.0154287]
[1721257617626,2.15163247,64244.0,64243.0,0.0154287]
[1721257620276,2.20164411,64244.0,64243.0,0.0154287]
[1721257620811,2.29509411,64244.0,64243.0,0.0154287]
[1721257621018,2.37867315,64244.0,64243.0,0.0154287]
[1721257622556,2.32985642,64244.0,64243.0,0.0154287]
[1721257623343,2.37985642,64244.0,64243.0,0.0154287]
[1721257625757,2.19681693,64244.0,64243.0,0.0154287]
[1721257625956,2.32974459,64244.0,64243.0,0.0154287]
[1721257626253,2.28137334,64244.0,64243.0,0.0154287]
[1721257626456,2.33052823,64244.0,64243.0,0.0154287]
[1721257628847,2.38052823,64244.0,64243.0,0.0154287]
[1721257629026,2.33036364,64244.0,64243.0,0.0154287]
[1721257631095,2.38036364,64244.0,64243.0,0.0154287]
[1721257631504,1.805693,64243.0,64242.0,7e-07]
[1721257631829,2.31269864,64243.0,64242.0,7e-07]
[1721257632032,2.22915193,64243.0,64242.0,7e-07]
[1721257632190,2.36236702,64243.0,64242.0,7e-07]
[1721257632391,2.45186702,64243.0,64242.0,7e-07]
[1721257633004,2.46586702,64243.0,64242.0,7e-07]
[1721257633187,2.85778402,64243.0,64242.0,7e-07]
[1721257633598,2.84378402,64243.0,64242.0,7e-07]
[1721257633802,2.85778402,64243.0,64242.0,7e-07]
[1721257634321,3.00608402,64243.0,64242.0,7e-07]
[1721257634580,3.1583846,64243.0,64242.0,7e-07]
[1721257635139,3.02516951,64243.0,64242.0,7e-07]
[1721257635338,3.00638997,64243.0,64242.0,7e-07]
[1721257635824,0.05,64241.0,64240.0,2e-07]
[1721257636049,2.64892222,64241.0,64240.0,2e-07]
[1721257636497,2.74892222,64241.0,64240.0,2e-07]
[1721257636992,2.76292222,64241.0,64240.0,2e-07]
[1721257637397,2.77692222,64241.0,64240.0,2e-07]
[1721257637600,2.76292222,64241.0,64240.0,2e-07]
[1721257638386,2.67908883,64241.0,64240.0,2e-07]
[1721257638582,2.77808489,64241.0,64240.0,2e-07]
[1721257638784,0.05,64238.0,64237.0,2e-07]
[1721257638989,2.20448993,64238.0,64237.0,2e-07]
[1721257639195,2.43914089,64238.0,64237.0,2e-07]
[1721257639755,2.75048289,64238.0,64237.0,2e-07]
[1721257640579,2.76448289,64238.0,64237.0,2e-07]
[1721257640817,2.77848289,64238.0,64237.0,2e-07]
[1721257641557,2.64383193,64238.0,64237.0,2e-07]
[1721257641680,2.77704888,64238.0,64237.0,2e-07]
[1721257643458,2.77704888,64238.0,64237.0,2e-07]
[1721257643663,1.96246333,64238.0,64237.0,2e-07]
[1721257644127,1.85737219,64238.0,64237.0,2e-07]
[1721257644330,1.49200687,64238.0,64237.0,0.0773002]
[1721257644737,1.35331565,64238.0,64237.0,0.0773002]
[1721257644911,1.33931565,64238.0,64237.0,0.0773002]
[1721257645413,1.35377306,64238.0,64237.0,0.0773002]
[1721257645582,1.43977306,64238.0,64237.0,0.0773002]
[1721257646030,1.43977306,64238.0,64237.0,2e-07]
[1721257646231,1.78002306,64238.0,64237.0,2e-07]
[1721257646437,1.87992306,64238.0,64237.0,2e-07]
[1721257646650,2.19126506,64238.0,64237.0,2e-07]
[1721257646774,2.2947018,64238.0,64237.0,2e-07]
[1721257646989,2.15526506,64238.0,64237.0,2e-07]
[1721257647189,2.2947018,64238.0,64237.0,2e-07]
[1721257647818,2.29458467,64238.0,64237.0,2e-07]
[1721257647972,2.34470178,64238.0,64237.0,2e-07]
[1721257648172,2.29470178,64238.0,64237.0,2e-07]
[1721257648376,2.30870178,64238.0,64237.0,2e-07]
[1721257648579,2.35870178,64238.0,64237.0,2e-07]
[1721257649409,2.39413111,64238.0,64237.0,2e-07]
[1721257649844,2.16914793,64238.0,64237.0,2e-07]
[1721257650063,2.75552877,64238.0,64237.0,2e-07]
[1721257650304,2.61598038,64238.0,64237.0,2e-07]
[1721257650942,2.6162849,64238.0,64237.0,2e-07]
[1721257654168,2.56517443,64238.0,64237.0,2e-07]
[1721257654302,2.61447022,64238.0,64237.0,2e-07]
[1721257654511,2.77146458,64238.0,64237.0,2e-07]
[1721257656604,2.61447022,64238.0,64237.0,2e-07]
[1721257657318,2.48048993,64238.0,64237.0,2e-07]
[1721257657491,2.48048993,64238.0,64227.0,0.009185]
[1721257657492,1.917295,64228.0,64227.0,0.009185]
[1721257657698,2.37544404,64228.0,64227.0,0.009185]
[1721257657932,2.48226809,64228.0,64227.0,0.009185]
[1721257658101,2.58226809,64228.0,64227.0,0.009185]
[1721257658669,2.59626809,64228.0,64227.0,0.009185]
[1721257658910,1.090085,64215.0,64214.0,0.07640849]
[1721257659112,1.54050365,64215.0,64214.0,0.07640849]
[1721257659746,1.44743404,64215.0,64214.0,0.07640849]
[1721257660128,1.54048692,64215.0,64214.0,0.07640849]
[1721257660549,1.44623671,64215.0,64214.0,0.07640849]
[1721257661394,1.5392749,64215.0,64214.0,0.07640849]
[1721257661790,1.5462749,64215.0,64214.0,0.07640849]
[1721257661965,1.45323671,64215.0,64214.0,0.14270849]
[1721257662145,1.46023671,64215.0,64214.0,0.14270849]
[1721257662543,1.5532749,64215.0,64214.0,0.14270849]
[1721257663566,1.45934828,64215.0,64214.0,0.14270849]
[1721257663974,1.41304393,64215.0,64214.0,0.14270849]
[1721257664166,1.55240219,64215.0,64214.0,0.14270849]
[1721257664410,1.45934782,64215.0,64214.0,0.14270849]
[1721257665807,1.57567211,64215.0,64214.0,0.14270849]
[1721257666862,1.57579582,64215.0,64214.0,0.14270849]
[1721257667633,1.45948586,64215.0,64214.0,0.14270849]
[1721257667841,0.97065112,64215.0,64214.0,0.14270849]
[1721257668273,1.06371172,64215.0,64214.0,0.14270849]
[1721257668436,0.44080572,64215.0,64214.0,0.14270849]
[1721257668642,0.75225872,64215.0,64214.0,0.14270849]
[1721257668884,0.6825575,64215.0,64214.0,0.14270849]
[1721257669289,0.6825575,64215.0,64214.0,0.29843749]
[1721257669290,0.1153785,64215.0,64214.0,0.29843749]
[1721257669463,0.014,64215.0,64214.0,0.29843749]
[1721257669853,0.014,64215.0,64214.0,0.14270849]
[1721257670726,0.014,64215.0,64214.0,0.29843749]
[1721257674754,0.014,64215.0,64214.0,0.29935049]
[1721257675162,0.482009,64215.0,64214.0,0.14362149]
[1721257675785,0.170556,64215.0,64214.0,0.14362149]
[1721257677995,0.01483,64215.0,64214.0,0.14362149]
[1721257679859,0.01483,64215.0,64211.0,0.155736]
[1721257680175,0.170556,64215.0,64212.0,0.002794]
[1721257680536,0.01483,64215.0,64214.0,0.155729]
[1721257680739,0.00783,64215.0,64213.0,0.155731]
[1721257681163,0.00783,64215.0,64214.0,0.155729]
[1721257681914,0.00083,64215.0,64214.0,0.155729]
[1721257682112,0.01483,64215.0,64214.0,0.155729]
[1721257682518,0.00083,64215.0,64214.0,0.155729]
[1721257682781,0.00783,64215.0,64214.0,0.155729]
[1721257682957,0.01483,64215.0,64214.0,0.297629]
[1721257684359,0.01483,64215.0,64214.0,1.47588474]
[1721257684984,0.01483,64215.0,64214.0,1.52588474]
[1721257685184,0.01483,64215.0,64214.0,1.47588474]
[1721257685458,0.00783,64215.0,64214.0,1.47588474]
[1721257685658,0.00083,64215.0,64214.0,1.47588474]
[1721257685913,0.00183,64215.0,64214.0,1.47588474]
[1721257686321,0.00283,64215.0,64214.0,1.38638474]
[1721257690601,0.00283,64215.0,64214.0,2.28300074]
[1721257690858,0.11639301,64235.0,64214.0,2.28300074]
[1721257690859,0.0465572,64237.0,64233.0,0.0842]
[1721257691028,0.11639301,64242.0,64233.0,0.0842]
[1721257691029,0.0465572,64242.0,64241.0,0.235763]
[1721257691234,0.0465572,64242.0,64241.0,0.0801]
[1721257691451,0.0706658,64244.0,64241.0,0.0801]
[1721257691452,0.04654781,64243.0,64241.0,0.0801]
[1721257691861,0.20301075,64244.0,64241.0,0.0801]
[1721257692310,0.04652375,64243.0,64241.0,0.0801]
[1721257692519,0.1,64243.0,64241.0,0.0801]
[1721257692762,0.106,64243.0,64241.0,0.0811]
[1721257693198,0.1,64243.0,64241.0,0.0801]
[1721257693402,0.1,64243.0,64241.0,0.0811]
[1721257693640,0.106,64243.0,64241.0,0.0821]
[1721257693882,0.1,64243.0,64241.0,0.0811]
[1721257694350,0.107,64243.0,64241.0,0.0821]
[1721257694612,0.107,64243.0,64242.0,0.155661]
[1721257694861,0.107,64243.0,64241.0,0.0811]
[1721257694862,0.007,64243.0,64241.0,0.0801]
[1721257695086,0.014,64243.0,64241.0,0.236763]
[1721257695565,0.007,64243.0,64241.0,0.235763]
[1721257695791,0.007,64243.0,64242.0,0.001]
[1721257695792,0.014,64243.0,64242.0,0.001]
[1721257696042,0.02,64243.0,64242.0,0.001]
[1721257696266,0.013,64243.0,64241.0,0.0811]
[1721257696512,0.013,64243.0,64241.0,0.0821]
[1721257696513,0.02,64243.0,64241.0,0.0821]
[1721257696735,0.02,64243.0,64241.0,0.237763]
[1721257697202,0.02,64243.0,64241.0,0.0821]
[1721257697656,0.007,64243.0,64241.0,0.0811]
[1721257697904,0.10083,64244.0,64241.0,0.0801]
[1721257698128,0.006,64243.0,64242.0,0.001]
[1721257698494,0.00083,64244.0,64243.0,0.466975]
[1721257698756,0.00083,64244.0,64243.0,0.778292]
[1721257698987,0.00083,64244.0,64243.0,1.32509074]
[1721257699242,0.00083,64244.0,64243.0,1.38519074]
[1721257699728,0.00083,64244.0,64243.0,1.38619074]
[1721257699729,0.00783,64244.0,64243.0,1.38619074]
[1721257700844,0.00083,64244.0,64243.0,1.39019074]
[1721257701312,0.00083,64244.0,64243.0,1.39419074]
[1721257701572,0.00083,64244.0,64243.0,1.44419074]
[1721257702471,0.00083,64244.0,64243.0,1.39019074]
[1721257702695,0.00183,64244.0,64243.0,1.39719074]
[1721257703172,0.00183,64244.0,64243.0,1.39219074]
[1721257703372,0.00283,64244.0,64243.0,1.40619074]
[1721257703860,0.00283,64244.0,64243.0,2.07882474]
[1721257704095,0.00183,64244.0,64243.0,2.07182474]
[1721257704317,0.00083,64249.0,64248.0,1.450818]
[1721257704563,0.00083,64249.0,64248.0,1.96539974]
[1721257707286,0.00083,64249.0,64248.0,1.97939974]
[1721257707996,0.00083,64249.0,64248.0,1.99339974]
[1721257708226,0.00083,64249.0,64248.0,2.12262422]
[1721257708484,0.00083,64249.0,64248.0,1.99339974]
[1721257710203,0.00083,64249.0,64248.0,2.22262229]
[1721257710442,0.00083,64249.0,64248.0,2.09339974]
[1721257710705,0.00083,64249.0,64248.0,2.22261324]
[1721257710949,0.00083,64260.0,64259.0,0.05]
[1721257711186,0.00083,64260.0,64259.0,1.83177314]
[1721257711458,0.00083,64260.0,64259.0,1.97067314]
[1721257712384,0.00083,64260.0,64259.0,1.97956174]
[1721257712892,0.00083,64260.0,64259.0,1.96756174]
[1721257713136,0.00083,64260.0,64259.0,1.98156174]
[1721257713388,0.00083,64260.0,64259.0,1.99556174]
[1721257713640,0.00083,64260.0,64259.0,1.98156174]
[1721257714142,0.00083,64260.0,64259.0,1.99556174]
[1721257714403,0.00083,64260.0,64259.0,1.96756174]
[1721257714681,0.00083,64260.0,64259.0,1.99556174]
[1721257715222,0.00083,64260.0,64259.0,1.98156174]
[1721257715695,0.00083,64260.0,64259.0,1.99556174]
[1721257716144,0.00083,64260.0,64259.0,1.98156174]
[1721257716381,0.00083,64260.0,64259.0,1.99556174]
[1721257716636,0.00083,64260.0,64259.0,1.98156174]
[1721257716885,0.00083,64260.0,64259.0,1.99556174]
[1721257717144,0.00083,64260.0,64259.0,1.98156174]
[1721257717672,0.00083,64260.0,64259.0,1.99556174]
[1721257717913,0.00083,64260.0,64259.0,1.96756174]
[1721257718155,0.00083,64260.0,64259.0,1.99556174]
[1721257718368,0.00083,64260.0,64259.0,1.98156174]
[1721257718902,0.00083,64260.0,64259.0,2.09676787]
[1721257719146,0.00083,64260.0,64259.0,2.11076403]
[1721257719354,0.00083,64260.0,64259.0,2.11076149]
[1721257719764,0.00083,64260.0,64259.0,2.11076073]
[1721257720724,0.00083,64260.0,64259.0,2.09676372]
[1721257720922,0.00083,64260.0,64259.0,2.11076372]
[1721257721128,0.00083,64260.0,64259.0,1.76352372]
[1721257721329,0.00083,64260.0,64259.0,1.74952372]
[1721257721671,0.00083,64260.0,64259.0,1.76352372]
[1721257721877,0.00083,64260.0,64259.0,1.52582372]
[1721257722054,0.00083,64260.0,64259.0,1.53982372]
[1721257722502,0.00083,64260.0,64259.0,1.41062174]
[1721257722705,0.00083,64260.0,64259.0,1.53982685]
[1721257722907,0.00083,64260.0,64259.0,1.58982685]
[1721257723825,0.00083,64260.0,64259.0,1.53982685]
[1721257724307,0.00083,64260.0,64259.0,1.40092685]
[1721257725700,0.00083,64260.0,64259.0,1.40092694]
[1721257725904,0.00083,64260.0,64259.0,1.08968694]
[1721257727035,0.00083,64260.0,64259.0,1.40092694]
[1721257728168,0.00083,64260.0,64259.0,1.08968694]
[1721257728795,0.00083,64260.0,64259.0,1.08969749]
[1721257729191,0.00083,64260.0,64259.0,0.96048174]
[1721257729382,0.00083,64260.0,64259.0,1.08969749]
[1721257731740,0.00083,64260.0,64259.0,1.40093749]
[1721257731885,0.00083,64260.0,64259.0,0.96048174]
[1721257732090,0.00083,64260.0,64259.0,1.08969628]
[1721257732992,0.00083,64260.0,64259.0,1.40093628]
[1721257733203,0.00083,64260.0,64259.0,1.08969628]
[1721257737162,0.00083,64260.0,64259.0,1.40093628]
[1721257737919,0.00083,64260.0,64259.0,1.08969628]
[1721257738325,0.00083,64260.0,64259.0,1.40093588]
[1721257738753,0.00083,64260.0,64259.0,1.08969588]
[1721257739075,0.00083,64260.0,64259.0,1.08969476]
[1721257740086,0.22229195,64260.0,64259.0,1.08969476]
[1721257740967,0.22229195,64260.0,64259.0,0.96048174]
[1721257741147,0.22229195,64260.0,64259.0,1.08969476]
[1721257746632,0.22229195,64260.0,64259.0,1.40093476]
[1721257747153,0.22229195,64260.0,64259.0,0.96048174]
[1721257747362,0.22229195,64260.0,64259.0,1.08969355]
[1721257747774,0.22229195,64260.0,64259.0,1.08969591]
[1721257748194,0.28569195,64260.0,64259.0,1.08969591]
[1721257750194,0.36759195,64260.0,64259.0,1.08969591]
[1721257750394,0.36759195,64260.0,64259.0,0.96048174]
[1721257750593,0.36759195,64260.0,64259.0,1.08969591]
[1721257750870,0.36759195,64260.0,64259.0,0.46721591]
[1721257751095,1.14567895,64260.0,64259.0,0.15721417]
[1721257751286,1.14567895,64260.0,64259.0,0.028]
[1721257751441,1.23887848,64260.0,64259.0,0.028]
[1721257751647,1.2702025,64260.0,64259.0,0.028]
[1721257751845,1.22374695,64260.0,64259.0,0.014]
[1721257752105,1.34024637,64260.0,64259.0,0.014]
[1721257752447,1.17700297,64260.0,64259.0,0.014]
[1721257752778,0.155634,64254.0,64249.0,0.002794]
[1721257753199,0.1397,64252.0,64249.0,0.155643]
[1721257753422,0.0621,64251.0,64249.0,0.155643]
[1721257754146,0.0621,64251.0,64249.0,0.169643]
[1721257754281,0.0621,64251.0,64249.0,0.155643]
[1721257754484,0.0621,64251.0,64249.0,0.014]
[1721257754688,0.233238,64252.0,64249.0,0.02]
[1721257754689,0.1384,64250.0,64249.0,0.02]
[1721257755107,0.1384,64250.0,64249.0,0.006]
[1721257755721,0.1384,64250.0,64249.0,0.161644]
[1721257756368,0.1384,64250.0,64249.0,0.166644]
[1721257756620,0.1384,64250.0,64249.0,0.005]
[1721257756822,0.1384,64250.0,64249.0,0.011]
[1721257756951,0.1384,64250.0,64249.0,0.161644]
[1721257757163,0.1384,64250.0,64249.0,0.155644]
[1721257757358,0.1384,64250.0,64249.0,0.158644]
[1721257758954,0.1384,64250.0,64249.0,0.469932]
[1721257761023,0.1384,64250.0,64249.0,0.158644]
[1721257762907,0.1384,64250.0,64249.0,0.469932]
[1721257763325,0.22229195,64260.0,64249.0,0.15738174]
[1721257763526,0.1448,64259.0,64258.0,0.155621]
[1721257768330,0.1448,64259.0,64258.0,0.155621]
[1721257769700,0.1448,64259.0,64257.0,0.155624]
[1721257771055,0.1458,64259.0,64257.0,0.155624]
[1721257771666,0.1458,64259.0,64258.0,0.155622]
[1721257772294,0.1448,64259.0,64256.0,0.31000674]
[1721257772751,0.1458,64259.0,64256.0,0.31000674]
[1721257773064,0.1448,64259.0,64256.0,0.31000674]
[1721257773388,0.1468,64259.0,64256.0,0.31000674]
[1721257773633,0.1458,64259.0,64256.0,0.31000674]
[1721257773976,0.1468,64259.0,64256.0,0.31000674]
[1721257774389,0.002,64259.0,64256.0,0.15438174]
[1721257774592,0.155632,64254.0,64251.0,0.07717479]
[1721257775664,0.155632,64254.0,64250.0,0.31002174]
[1721257775868,0.0797,64252.0,64251.0,0.003]
[1721257776018,0.0797,64252.0,64251.0,0.007]
[1721257776627,0.452374,64252.0,64251.0,0.004]
[1721257776803,0.311245,64258.0,64250.0,0.003]
[1721257776804,0.217039,64251.0,64250.0,0.003]
[1721257777004,0.296739,64251.0,64250.0,0.003]
[1721257777214,0.608018,64251.0,64250.0,0.003]
[1721257777424,0.0632,64248.0,64245.0,0.07996879]
[1721257777850,0.0632,64248.0,64245.0,0.07717479]
[1721257778084,0.311273,64253.0,64242.0,0.002794]
[1721257778085,0.0751,64247.0,64242.0,0.002794]
[1721257778290,0.0751,64247.0,64233.0,0.311361]
[1721257778291,0.1399,64242.0,64240.0,0.002794]
[1721257778519,0.155676,64236.0,64231.0,0.155686]
[1721257778719,0.0665,64235.0,64232.0,0.5193018]
[1721257778944,0.0665,64235.0,64233.0,0.12926965]
[1721257779147,0.0665,64235.0,64232.0,0.38724053]
[1721257779375,0.0802,64234.0,64232.0,0.15438174]
[1721257779613,0.0802,64234.0,64227.0,0.155696]
[1721257779614,0.375069,64233.0,64227.0,0.155696]
[1721257779953,0.219385,64233.0,64232.0,0.001]
[1721257780094,0.219385,64233.0,64229.0,0.155692]
[1721257780494,0.155693,64229.0,64225.0,0.07717479]
[1721257780714,0.155693,64229.0,64226.0,0.129283]
[1721257780920,0.155693,64229.0,64225.0,0.07717479]
[1721257781492,0.155693,64229.0,64225.0,0.23287679]
[1721257782341,0.297091,64230.0,64225.0,0.23287679]
[1721257782763,0.297091,64230.0,64227.0,0.003]
[1721257783067,0.297091,64230.0,64225.0,0.23287679]
[1721257783260,0.1456,64229.0,64225.0,0.001]
[1721257783459,0.064,64228.0,64218.0,0.07717479]
[1721257783710,0.219703,64225.0,64220.0,0.155714]
[1721257783929,0.064,64220.0,64215.0,0.000913]
[1721257784128,0.064,64220.0,64216.0,0.155723]
[1721257785115,0.064,64220.0,64217.0,0.155721]
[1721257786304,0.066,64220.0,64217.0,0.155721]
[1721257786625,0.065,64220.0,64216.0,0.311447]
[1721257786826,0.065,64220.0,64218.0,0.155717]
[1721257787035,0.067,64220.0,64218.0,0.155717]
[1721257787500,0.066,64220.0,64218.0,0.155717]
[1721257787721,0.066,64220.0,64217.0,0.155721]
[1721257787925,0.067,64220.0,64217.0,0.155721]
[1721257788159,0.067,64220.0,64218.0,0.155718]
[1721257788363,0.065,64220.0,64219.0,0.155717]
[1721257788534,0.067,64220.0,64219.0,0.155717]
[1721257788752,0.067,64220.0,64217.0,0.467162]
[1721257788978,0.067,64220.0,64218.0,0.155719]
[1721257789184,0.064,64220.0,64218.0,0.155719]
[1721257789540,0.065,64220.0,64218.0,0.155719]
[1721257789981,0.067,64220.0,64218.0,0.155719]
[1721257790158,0.067,64220.0,64217.0,0.155721]
[1721257791256,0.065,64220.0,64217.0,0.155721]
[1721257791662,0.067,64220.0,64217.0,0.155721]
[1721257792275,0.066,64220.0,64217.0,0.155721]
[1721257792486,0.067,64220.0,64217.0,0.155721]
[1721257800175,0.067,64220.0,64218.0,0.155718]
[1721257800924,0.065,64220.0,64218.0,0.155718]
[1721257802283,0.064,64220.0,64218.0,0.155718]